Cogmind - Beta 16.1 @@@ ROGUE MODE // 2026.04.20 @ 03:07:36 Player: Nomad Result: Destroyed by G-47 Trooper with Particle Gun Performance ------------- Evolutions (2) 1000 Regions Visited (6) 1200 Robots Destroyed (24) 120 Value Destroyed (584) 584 Prototype IDs (1) 20 Alien Tech Used (0) 0 Bonus (300) 300 TOTAL SCORE: 3224 Bonus ------- Aligned with FarCom 300 Cogmind --------- Core Integrity 0/550 Matter 282/300 Energy 100/100 System Corruption 0% Temperature Cool (9) Movement Core (150) Ox2 Location -8/Storage Parts ------- > --- POWER (3) -------- (None) > --- PROPULSION (2) --- (None) > --- UTILITY (3) ------ Small Storage Unit > --- WEAPON (3) ------- Scythe > --- INVENTORY (8) ---- (None) Peak State ------------ > --- POWER ------------ Improved Ion Engine Improved Ion Engine Deuterium Engine > --- PROPULSION ------- Flight Unit Flight Unit > --- UTILITY ---------- Small Storage Unit Modified TNC Reactive Plating > --- WEAPON ----------- Beam Rifle Heavy Particle Cannon Ion Cannon > --- INVENTORY -------- Aluminum Leg Flight Unit [Rating: 27] Favorites ----------- Power Improved Ion Engine Engine Improved Ion Engine Power Core Light Nuclear Core Propulsion Aluminum Leg Leg Aluminum Leg Flight Unit Flight Unit Utility Small Storage Unit Storage Small Storage Unit Processor Modified TNC Protection Reactive Plating Weapon Small Laser Energy Gun Small Laser Energy Cannon Ion Cannon Ballistic Gun Assault Rifle Slashing Weapon Scythe Build | -11 -10 -10 -10 -9 -8 -8 ------- Run | Yrd Mat Min Exi Min Mat Sto Slots Evolved 4 | . . . . . 4 . Power 2 | . . . . . 2 . Propulsion . | . . . . . . . Utility 1 | . . . . . 1 . Weapon 1 | . . . . . 1 . Parts Attached 24 | 7 . . 1 1 8 7 Power 5 | 1 . . . 1 3 . Engine 4 | 1 . . . . 3 . Core 1 | . . . . 1 . . Reactor . | . . . . . . . Propulsion 8 | 2 . . . . 1 5 Treads . | . . . . . . . Leg 5 | 2 . . . . 1 2 Wheel . | . . . . . . . Hover . | . . . . . . . Flight 3 | . . . . . . 3 Utility 3 | 1 . . 1 . 1 . Device . | . . . . . . . Storage 1 | 1 . . . . . . Processor 1 | . . . 1 . . . Hackware . | . . . . . . . Protection 1 | . . . . . 1 . Artifact . | . . . . . . . Weapon 8 | 3 . . . . 3 2 Energy Gun 2 | 1 . . . . 1 . Energy Cannon 2 | . . . . . 1 1 Ballistic Gun 3 | 2 . . . . 1 . Ballistic Cannon . | . . . . . . . Launcher . | . . . . . . . Special Weapon . | . . . . . . . Impact Weapon . | . . . . . . . Slashing Weapon 1 | . . . . . . 1 Piercing Weapon . | . . . . . . . Special Melee Weapon . | . . . . . . . Unidentified Prototypes 1 | . . . 1 . . . Parts Lost 12 | . . . . . 1 11 Power 4 | . . . . . 1 3 Propulsion 3 | . . . . . . 3 Utility 1 | . . . . . . 1 Weapon 4 | . . . . . . 4 Highest Loss Streak 7 | . . . . . 1 7 To Critical Strikes . | . . . . . . . Average Backups . | 1 1 1 1 1 . 1 Power . | . 1 1 1 . . . Propulsion . | . . . . . . . Utility . | . . . . . . . Weapon . | . . . . . . . Tool/Special . | . . . . . . . Unused Backups 1 | . . . . 1 . . Power 1 | . . . . 1 . . Propulsion . | . . . . . . . Utility . | . . . . . . . Weapon . | . . . . . . . Tool/Special . | . . . . . . . Average Slot Usage (%) 89 | . 85 85 91 100 78 84 Engine 13 | . 14 14 14 . 10 24 Core 3 | . . . . 13 2 . Leg 19 | . 28 28 28 28 17 5 Flight 2 | . . . . . . 10 Storage 11 | . 14 14 14 14 9 9 Processor 7 | . . . 6 14 9 4 Protection 2 | . . . . . 3 8 Energy Gun 11 | . 14 14 14 14 14 4 Energy Cannon 4 | . . . . . 2 13 Ballistic Gun 10 | . 14 14 14 14 9 4 Peak Build Rating 27 | 6 6 6 12 14 26 27 Average Rating 15 | 4 6 6 8 13 19 21 On Entrance 10 | . 6 6 6 12 14 26 Avg Prop Armor Cover (%) 28 | 38 . . . . . 8 Naked Turns . | . . . . . . . Heaviest Build 50 | 13 13 13 13 13 50 50 Greatest Support 26 | 20 20 20 20 20 20 26 Greatest Overweight (x) 7 | . . . . . 2 7 Average Overweight (x) . | . . . . . . 4 Largest Inventory Capacity 8 | 8 8 8 8 8 8 8 Average Capacity 7 | 6 8 8 8 8 8 8 Most Carried 5 | 5 2 1 2 3 3 5 Average Carried . | 1 1 1 1 1 . 1 Final Capacity 8 | 8 8 8 8 8 8 8 Final Carried 1 | 1 1 1 1 1 1 . Class Distribution -------------------- 70% | Mutant 29% | Skirmisher Dominant Class ---------------- Mutant | -10/Materials Mutant | -10/Mines Mutant | -10/Exiles Mutant | -9/Mines Skirmisher | -8/Materials Mutant | -8/Storage Resources | -11 -10 -10 -10 -9 -8 -8 ----------- Run | Yrd Mat Min Exi Min Mat Sto Matter Collected 528 | 216 . . . 131 80 101 Remotely . | . . . . . . . Salvage Created 685 | . . . . 229 157 299 Parts 53 | . . . . 18 12 23 Haulers Intercepted . | . . . . . . . Recyclers Shooed . | . . . . . . . Parts Field Recycled . | . . . . . . . Retrieved Matter . | . . . . . . . Parts Self-Destructed . | . . . . . . . Prevented . | . . . . . . . Parts Restored . | . . . . . . . Kills | -11 -10 -10 -10 -9 -8 -8 ------- Run | Yrd Mat Min Exi Min Mat Sto Combat Hostiles Destroyed 24 | . . . . 11 3 10 Guns 17 | . . . . 11 2 4 Cannons 7 | . . . . . 1 6 Classes Destroyed 3 | . . . . 2 1 . Swarmer 14 | . . . . 8 . 6 Grunt 5 | . . . . 3 . 2 Sentry 5 | . . . . . 3 2 Best Kill Streak 4 | . . . . 3 1 4 Combat Bots Only 4 | . . . . 3 1 4 Max Kills in Single Turn 2 | . . . . 2 1 2 Gunslinging 1 | . . . . 1 . . Exploded . | . . . . . . . Melee . | . . . . . . . Uniques/NPCs Destroyed . | . . . . . . . Combat | -11 -10 -10 -10 -9 -8 -8 -------- Run | Yrd Mat Min Exi Min Mat Sto Hostile Shots Fired 194 | . . 3 . 58 10 123 Missed 62 | . . 2 . 24 3 33 Hits 132 | . . 1 . 34 7 90 Projectile 132 | . . 1 . 34 7 90 Critical Strikes 5 | . . . . . . 5 Damage Taken 1954 | . . 13 . 287 100 1554 Core 661 | . . 13 . 90 14 544 Absorbed by Shields . | . . . . . . . Ignored by Resistances 49 | . . . . . 3 46 Core Remaining (%) 79 | 100 . . . 58 . . Volleys Fired 47 | . . . . 19 5 23 Largest 3 | . . . . 2 3 3 Hottest 191 | . . . . 60 139 191 Shots Fired 102 | . . . . 38 15 49 Gun 72 | . . . . 38 13 21 Cannon 30 | . . . . . 2 28 Launcher . | . . . . . . . Special . | . . . . . . . Kinetic 38 | . . . . 19 5 14 Thermal 64 | . . . . 19 10 35 Explosive . | . . . . . . . Electromagnetic . | . . . . . . . Robot Hit Streak 9 | . . . . 3 9 8 Robot Miss Streak 4 | . . . . 4 1 2 Penetration Max . | . . . . . . . Secondary Targets 4 | . . . . 4 . . Max Gunslinging Chain 1 | . . . . 1 . . Shots Hit Robots 58 | . . . . 18 9 31 Core Hits 34 | . . . . 14 5 15 Critical Kills . | . . . . . . . Critical Parts Destroyed . | . . . . . . . Critical Strikes 2 | . . . . . 1 1 Burn 2 | . . . . . 1 1 Melee Attacks . | . . . . . . . Impact . | . . . . . . . Slashing . | . . . . . . . Piercing . | . . . . . . . Sneak Attacks . | . . . . . . . Combat Hostiles . | . . . . . . . Follow-up Attacks . | . . . . . . . Damage Inflicted 1096 | . . . . 245 142 709 Guns 571 | . . . . 245 95 231 Cannons 518 | . . . . . 47 471 Explosions . | . . . . . . . Melee . | . . . . . . . Ramming 7 | . . . . . . 7 Kinetic 329 | . . . . 138 32 159 Thermal 760 | . . . . 107 110 543 Explosive . | . . . . . . . Electromagnetic . | . . . . . . . Impact . | . . . . . . . Slashing . | . . . . . . . Piercing . | . . . . . . . Highest Corruption . | . . . . . . . Average Corruption . | . . . . . . . Corruption Purged . | . . . . . . . Corruption Blocked . | . . . . . . . Overload Shots . | . . . . . . . Overflow Damage 3 | . . . . . . 3 Projectiles 3 | . . . . . . 3 Explosions . | . . . . . . . Melee . | . . . . . . . Knockbacks . | . . . . . . . Impact . | . . . . . . . Kinetic . | . . . . . . . Secondary . | . . . . . . . Self-Inflicted Damage 3 | . . . . . . 3 Shots . | . . . . . . . Rammed 3 | . . . . . . 3 Targets Rammed 3 | . . . . . . 3 Kicked . | . . . . . . . Crushed . | . . . . . . . Highest Temperature 726 | . . . . 39 165 726 Average Temperature 190 | . . . . 17 64 240 Received Heat Transfer 714 | . . 9 . 39 18 648 Effects 48 | . . . . . . 48 Shutdowns 17 | . . . . . . 17 Energy Bleed 5 | . . . . . . 5 Interference 5 | . . . . . . 5 Matter Decay 1 | . . . . . . 1 Short Circuit 3 | . . . . . . 3 Damage (minor) 2 | . . . . . . 2 Damage (major) 13 | . . . . . . 13 Damage (core) 2 | . . . . . . 2 Siege Activations . | . . . . . . . Martial Activations . | . . . . . . . Shielding Activations . | . . . . . . . Robots Disrupted . | . . . . . . . Combat Hostiles . | . . . . . . . Robots Corrupted . | . . . . . . . Combat Hostiles . | . . . . . . . Parts Fried . | . . . . . . . Impact Corruptions . | . . . . . . . Robots Melted . | . . . . . . . Combat Hostiles . | . . . . . . . Parts Melted 3 | . . . . 1 1 1 Heat Transferred 1546 | . . . . 250 297 999 Parts Sabotaged . | . . . . . . . Parts Stolen . | . . . . . . . Parts Stripped . | . . . . . . . Power Chain Reactions . | . . . . . . . Alert | -11 -10 -10 -10 -9 -8 -8 ------- Run | Yrd Mat Min Exi Min Mat Sto Maximum Alert Level . | . . . . . . . Low Security (%) 100 | 100 100 100 . 100 100 100 Level 1 . | . . . . . . . Level 2 . | . . . . . . . Level 3 . | . . . . . . . Level 4 . | . . . . . . . Level 5 . | . . . . . . . High Security . | . . . . . . . Max Security . | . . . . . . . Peak Influence 136 | . . . . 124 41 136 Initial 41 | . . . . . 41 . Average 24 | . . . . 23 10 37 Influence Increases 607 | . . . . 260 97 250 Destroy 0b10 Robot/C 480 | . . . . 220 60 200 Destroy Leader 100 | . . . . 40 30 30 Successful Hack 5 | . . . . . 5 . Disable Machine 15 | . . . . . . 15 Destroy Structure 7 | . . . . . 2 5 Influence Decreases 607 | . . . . 152 205 250 Entered New Map 67 | . . . . . 67 . Time Decay 510 | . . . . 152 138 220 Lost Part 30 | . . . . . . 30 Squads Dispatched 2 | . 1 . . . . 1 Investigation . | . . . . . . . Extermination . | . . . . . . . Reinforcement 2 | . 1 . . . . 1 Assault . | . . . . . . . Garrison . | . . . . . . . Intercept . | . . . . . . . Searches Triggered . | . . . . . . . Construction Impeded . | . . . . . . . Haulers Reinforced . | . . . . . . . Active Scanning Responses . | . . . . . . . Cargo Convoy Interrupts . | . . . . . . . Stealth | -11 -10 -10 -10 -9 -8 -8 --------- Run | Yrd Mat Min Exi Min Mat Sto Distress Signals 1 | . . . . . . 1 Communications Jammed . | . . . . . . . Distress Signals . | . . . . . . . Times Spotted 36 | . 1 2 . 12 3 18 Peak Tracking Total 5 | . 1 2 . 3 1 5 Tactical Retreats . | . . . . . . . Traps | -11 -10 -10 -10 -9 -8 -8 ------- Run | Yrd Mat Min Exi Min Mat Sto Traps Triggered 2 | . . . . . . 2 Indirectly . | . . . . . . . Trap Hack Attempts . | . . . . . . . Triggered . | . . . . . . . Disarmed . | . . . . . . . Reprogrammed . | . . . . . . . Reused . | . . . . . . . Traps Extracted . | . . . . . . . Installed . | . . . . . . . Triggered . | . . . . . . . Most Traps Carried 1 | . . . . 1 . . Machines | -11 -10 -10 -10 -9 -8 -8 ---------- Run | Yrd Mat Min Exi Min Mat Sto Machines Disabled 1 | . . . . . . 1 Max in Single Turn 1 | . . . . . . 1 Machines Repaired . | . . . . . . . Machines Dismantled . | . . . . . . . Machines Sabotaged . | . . . . . . . Overloaded Fab Kills . | . . . . . . . Hacking | -11 -10 -10 -10 -9 -8 -8 --------- Run | Yrd Mat Min Exi Min Mat Sto Machines Accessed 9 | . . . 4 1 3 1 Terminals 4 | . . . . 1 2 1 Fabricators . | . . . . . . . Repair Stations . | . . . . . . . Recycling Units 1 | . . . . . 1 . Scanalyzers . | . . . . . . . Garrison Access . | . . . . . . . Total Hacks 56 | . . . 49 2 4 1 Successful 52 | . . . 49 2 1 . Failed 4 | . . . . . 3 1 Catastrophic . | . . . . . . . Database Lockouts . | . . . . . . . Manual 1 | . . . 1 . . . Terminals 6 | . . . . 2 3 1 Fabricators . | . . . . . . . Repair Stations . | . . . . . . . Recycling Units 1 | . . . . . 1 . Scanalyzers . | . . . . . . . Garrison Access . | . . . . . . . Terminal Hacks 52 | . . . 49 2 1 . Record 50 | . . . 49 1 . . Hauler Manifests 1 | . . . . . 1 . Zone Layout 1 | . . . . 1 . . Fabricator Hacks . | . . . . . . . Repair Station Hacks . | . . . . . . . Recycling Unit Hacks . | . . . . . . . Scanalyzer . | . . . . . . . Garrison Access Hacks . | . . . . . . . Unauthorized Hacks . | . . . . . . . Terminals . | . . . . . . . Fabricators . | . . . . . . . Repair Stations . | . . . . . . . Recycling Units . | . . . . . . . Scanalyzers . | . . . . . . . Garrison Access . | . . . . . . . Data Cores Recovered . | . . . . . . . Used . | . . . . . . . Hacking Detections 1 | . . . . . . 1 Full Trace Events . | . . . . . . . Feedback Events . | . . . . . . . Feedback Blocked . | . . . . . . . Robot Schematics Acquired . | . . . . . . . Robots Built . | . . . . . . . Authchips . | . . . . . . . Time . | . . . . . . . Total Robot Build Rating . | . . . . . . . Part Schematics Acquired . | . . . . . . . Parts Built . | . . . . . . . Authchips . | . . . . . . . Time . | . . . . . . . Total Part Build Rating . | . . . . . . . Part Studies Acquired . | . . . . . . . Parts Repaired . | . . . . . . . Time . | . . . . . . . Parts Recycled . | . . . . . . . Recycled Matter . | . . . . . . . Retrieved Matter . | . . . . . . . Retrieved Components . | . . . . . . . Parts Scanalyzed . | . . . . . . . Part Schematics Acquired . | . . . . . . . Parts Damaged . | . . . . . . . Bothacking | -11 -10 -10 -10 -9 -8 -8 ------------ Run | Yrd Mat Min Exi Min Mat Sto Used RIF Installer . | . . . . . . . Robots Hacked . | . . . . . . . Non-combat . | . . . . . . . Combat . | . . . . . . . Robot Hacks Applied . | . . . . . . . Relay Couplers Released . | . . . . . . . Fabnet Peak Effective % . | . . . . . . . Robots Rewired . | . . . . . . . Allies Hacked . | . . . . . . . Hacks Repelled . | . . . . . . . Allies | -11 -10 -10 -10 -9 -8 -8 -------- Run | Yrd Mat Min Exi Min Mat Sto Total Allies . | . . . . . . . Largest Group . | . . . . . . . Highest-Rated Group . | . . . . . . . Highest-Rated Ally . | . . . . . . . Total Orders . | . . . . . . . Ally Attacks . | . . . . . . . Total Damage . | . . . . . . . Kills . | . . . . . . . Allies Corrupted . | . . . . . . . Allies Melted . | . . . . . . . Intel | -11 -10 -10 -10 -9 -8 -8 ------- Run | Yrd Mat Min Exi Min Mat Sto Active Infowar (turns) 1033 | . . . . 56 540 437 T.N.C. 1033 | . . . . 56 540 437 Robot Analysis Total . | . . . . . . . Derelict Logs Recovered 3 | . . . . 3 . . Drone Launches . | . . . . . . . Drone Recoveries . | . . . . . . . Exploration | -11 -10 -10 -10 -9 -8 -8 ------------- Run | Yrd Mat Min Exi Min Mat Sto Turns Passed 2970 | 52 28 12 913 604 540 821 Spaces Moved 1686 | 39 23 10 758 429 254 173 Core 36 | 16 . . . . . 20 Treads . | . . . . . . . Legs 1572 | 23 23 10 758 429 254 75 Wheels . | . . . . . . . Hover . | . . . . . . . Flight 78 | . . . . . . 78 Fastest Speed 50 | 50 120 120 120 120 120 150 Average Speed 154 | 91 120 120 120 120 181 375 Slowest Speed 517 | 120 120 120 120 120 260 517 Overloaded Moves . | . . . . . . . Propulsion Burnouts . | . . . . . . . Robots Hopped . | . . . . . . . Potential Cave-ins . | . . . . . . . Cave-ins Triggered . | . . . . . . . Exploration Rate (%) 31 | 3 6 5 93 71 19 26 Regions Visited 6 Branch Regions 4 Pre-discovered Areas 1 | . . . 1 . . . Known Exits Taken . | . . . . . . . Unknown Exits Taken 6 | 1 1 1 1 1 1 . Scrap Searched 2 | . . . . 2 . . Spaces Dug . | . . . . . . . Terrain Destroyed 5 | . . . . . . 5 Melee . | . . . . . . . Projectile 5 | . . . . . . 5 AOE . | . . . . . . . Terrain Rammed . | . . . . . . . Walls Destroyed . | . . . . . . . Machines Disabled . | . . . . . . . Actions | -11 -10 -10 -10 -9 -8 -8 --------- Run | Yrd Mat Min Exi Min Mat Sto Total 1958 | 57 24 10 761 481 326 299 Wait 151 | . . 1 2 25 45 78 Move 1680 | 38 22 9 757 428 253 173 Hop . | . . . . . . . Pick Up 29 | 9 1 . 1 4 8 6 Fast Attach . | . . . . . . . Attach 23 | 7 . . 1 . 8 7 Detach 9 | 1 . . . . 3 5 Swap 2 | . . . . 1 1 . Drop 14 | 2 1 . . 4 3 4 Fire 47 | . . . . 19 5 23 Melee . | . . . . . . . Ram 3 | . . . . . . 3 Kick . | . . . . . . . Crush . | . . . . . . . Escape Stasis . | . . . . . . . Rewire . | . . . . . . . Trap . | . . . . . . . Miscellaneous . | . . . . . . . Route ------- -11/Scrapyard -10/Materials -10/Mines -10/Exiles (discovered 2 exits: *Min x2) -9/Mines (discovered 2 exits: *Mat x2) -8/Materials -8/Storage History --------- Turn | Location | Event 4 | -11/Scrapyard | Discovered new exit (range 14) 53 | -11/Scrapyard | Entered Materials 53 | -10/Materials | Discovered new exit (range 15) 81 | -10/Materials | Entered Mines 86 | -10/Mines | Deemed a non-threat by the Exiles lab entrance 88 | -10/Mines | Discovered new exit (range 5) 93 | -10/Mines | Entered Exiles 113 | -10/Exiles | Discovered new exit (range 15) 144 | -10/Exiles | Met 8R-AWN 169 | -10/Exiles | Met EX-HEX 230 | -10/Exiles | Met EX-DEC 301 | -10/Exiles | Build established: Mutant 331 | -10/Exiles | Learned location of Zion (-6) 382 | -10/Exiles | Met EX-BIN 415 | -10/Exiles | Aligned with FarCom system 416 | -10/Exiles | Given EX-Vault access code 583 | -10/Exiles | Opened EX-Vault 586 | -10/Exiles | Found Prototype Processor 587 | -10/Exiles | Identified Modified TNC 617 | -10/Exiles | Warned to stay clear of 0b10 Research branches 712 | -10/Exiles | Discovered new exit (range 14) 808 | -10/Exiles | Visited The Gauntlet 1006 | -10/Exiles | Left Exiles lab with Modified TNC 1006 | -10/Exiles | Entered Mines 1007 | -9/Mines | Met a Derelict bent on vengeance 1043 | -9/Mines | Learned location of 1 exit from Lower Caves 1045 | -9/Mines | Learned Materials trap positions 1051 | -9/Mines | Found a hidden stash of uninstalled traps 1137 | -9/Mines | Discovered new exit (range 10) 1289 | -9/Mines | Discovered new exit (range 11) 1425 | -9/Mines | Learned 2 Materials zone layouts 1610 | -9/Mines | Entered Materials 1610 | -8/Materials | Evolved 4 slots: Power x2, Utility x1, Weapon x1 1612 | -8/Materials | Loaded intel: 13 trap records 1674 | -8/Materials | Discovered new exit (range 16) 1963 | -8/Materials | Build established: Skirmisher 2150 | -8/Materials | Entered Storage 2863 | -8/Storage | Build established: Mutant 2876 | -8/Storage | Core integrity fell below 50% 2959 | -8/Storage | Core integrity fell below 20% 2967 | -8/Storage | Lost 7 parts (3p2n1u1w) 2971 | -8/Storage | Destroyed by G-47 Trooper with Particle Gun Last Messages --------------- R-06 Scavenger collects Weight Redist. System. K-01 Serf collects debris. U-05 Engineer lays Concrete. Acquired Scythe. R-06 Scavenger collects Hover Unit. U-05 Engineer builds a Wall. R-06 Scavenger collects Lgt. Ion Engine. Acquired 9 matter. K-01 Serf collects debris. R-06 Scavenger collects Scythe. Hvy. Particle Cannon destroyed. Critical hit (Burn: +37). U-05 Engineer lays Concrete. K-01 Serf collects debris. R-06 Scavenger collects Hover Unit. U-05 Engineer lays Concrete. Triggered Explosive Trap. An explosion rips through the floor. K-01 Serf destroyed. U-05 Engineer lays Concrete. Map ----- +----------------------------------------------------+ | ?????????????????????????????????????????????????? | | ?????????????????????????????????????????????????? | | ?????????????????????????????????????????????????? | | ?????????????????????????????????????????????????? | | ?????????????????????????????????????????????????? | | ?????????????????????????????????????????????????? | | ?????????????????????????????????????????????????? | | ?????????????????????????????????????????????????? | | ??????????????????????Y??????????????????????????? | | ?????????????????????????????????????????????????? | | ?????????????????????????????????????????????????? | | ?????????????????????????????????????????????????? | | ?????????????????????????????w???????????????????? | | ?????????????????????????????????????????????????? | | ?????????????????????????????????????????????????? | | ?????????????????????????????????????????????????? | | ?????????????????????????????????????????????????? | | ?????????????????????????????????????????????????? | | ?????????????????????????????????????????????????? | | ???????????????????????????????##????????????????? | | ??????????????????????????????# ?????????????????? | | ????????????????????#####?### +??????????????????? | | ????????????????##### # #u#??????????????????? | | ????????????????? %%*#??????????????????? | | ????????????????????# r=!##?????????????????? | | ???????????????????????# @ ####??????????????? | | ???????????????????????# r +??????Y??????? | | ?????????????????????? T u #####?????????????? | | ?????????????????????ggg#gg ####?????????????????? | | ??????????????????? gggg#Y#####??????????????????? | | ?????????????????########r###T#??????????????????? | | ?????????????????# ## "??????????????????? | | ?????????????????# # "??????????????????? | | ?????????????????# " "??????????????????? | | ?????????????????# ####??????????????????? | | ?????????????????# #?????????????????????? | | ?????????????????# #?????????????????????? | | ?????????????????# ##### #?????????????????????? | | ?????????????????# #???# #?????????????????????? | | ?????????????????# ##??# #?????????????????????? | | ?????????????????# #####+#####?????##??????????? | | ?????????????????# + #??#### ######????? | | ?????????????????# ## #??# #????? | | ?????????????????# ## #??# #????? | | ?????????????????# ## #??# """ """ #????? | | ??????####+####### # #??# """ """ #????? | | ?????" ^ % # #??# """ " " #????? | | ?????" ^ + #??# #???? | | ??????#T##" ### ^ "# ! #??# % #???? | | ??????????????# ^^ T# ! #??# % % #???? | +----------------------------------------------------+ Best States ------------- Heat Dissipation 31 Energy Generation 28 Energy Capacity 605 Matter Stores 300 Matter Capacity 300 Sight Range 16 Terrain Scan Density 10 Armor Coverage 150 Resistance: KI 20 Evasion (%) 55 Item Schematics ----------------- None Robot Schematics ------------------ None Fabricated ------------ Nothing Repaired ---------- Nothing Studied --------- None Alien Tech Used ----------------- None Achievements -------------- Librarian Sixth Sense Well Done Challenges ------------ None Game ------ Seed ProjectionNavigationKit Manual? 0 Play Time 00:29:52 Cumulative 3.9 hours Start 2026.04.20 @ 02:42:16 End 2026.04.20 @ 03:07:36 Sessions 1 Manual Loads 0 Difficulty Rogue Special Mode None Game No. 13 Rogue 13 Adventurer 0 Explorer 0 Win Type - Total 0 Types 0/0/0/0/0/0/0/0/0/0 Lore% 7 Gallery% 6 Achievement% 6 Wizard Run 0 Options --------- Layout 1 ASCII 0 Keyboard 0 Movement Numpad Keybinds 0 Fullscreen 1 Font 32/SmallcapsGlow Map View 50x35 Zoom Use 0% Tactical HUD 0 Map Filters NONE Filters NONE Steam 1 RUN: 87da13ed-1d23-49da-93a5-7ab2b2644bd4